lending/lending_fUSD_20251125
["ID","MTS","AMOUNT","RATE_DAILY","PERIOD"]
[394902507,1764101437587,-500.0,0.00018735,2]
[394902508,1764101437598,-500.0,0.00018735,2]
[394902509,1764101437607,-500.0,0.00018735,2]
[394902510,1764101437616,-500.0,0.00018735,2]
[394902511,1764101437625,-500.0,0.00018735,2]
[394902512,1764101437634,-500.0,0.00018735,2]
[394902513,1764101437644,-500.0,0.00018735,2]
[394902514,1764101437653,-500.0,0.00018735,2]
[394902515,1764101437662,-500.0,0.00018735,2]
[394902516,1764101437671,-588.47923029,0.00018735,2]
[394902517,1764101437680,-500.0,0.00018735,2]
[394902518,1764101437689,-500.0,0.00018735,2]
[394902519,1764101437698,-500.0,0.00018735,2]
[394902520,1764101437707,-500.0,0.00018735,2]
[394902521,1764101437716,-529.35,0.00018735,2]
[394902522,1764101437725,-500.0,0.00018735,2]
[394902523,1764101437733,-170.54211254,0.00018735,2]
[394902524,1764101437743,-151.0,0.00018736,2]
[394902525,1764101437752,-151.0,0.00018736,2]
[394902526,1764101437761,-151.0,0.00018736,2]
[394902527,1764101437770,-151.0,0.00018736,2]
[394902528,1764101437779,-300.57639841,0.00018773,2]
[394902529,1764101437788,-500.0,0.00018773,2]
[394902530,1764101437797,-500.0,0.00018773,2]
[394902531,1764101437807,-500.0,0.00018773,2]
[394902532,1764101437817,-500.0,0.00018773,2]
[394902533,1764101437828,-166.66,0.00018839,2]
[394902534,1764101437836,-3350.740443,0.0001889,2]
[394902535,1764101437848,-911.0152162,0.0001889,2]
[394902536,1764101437857,-172.6704375,0.0001889,2]
[394902537,1764101437871,-227.54527672,0.00018935,2]
[394902538,1764101437880,-10728.53137683,0.00019,2]
[394902539,1764101437889,-529.35,0.00019009,2]
[394902540,1764101437900,-259.77752861,0.00019035,2]
[394902541,1764101437910,-196.50417612,0.00019035,2]
[394902542,1764101437920,-150.0,0.00019035,2]
[394902543,1764101437931,-150.0,0.00019035,2]
[394902544,1764101437943,-283.16679676,0.00019035,2]
[394902545,1764101437953,-205.90777453,0.00019035,2]
[394902546,1764101437962,-264.01132078,0.00019035,2]
[394902547,1764101437971,-150.0,0.00019035,2]
[394902548,1764101437980,-150.0,0.00019035,2]
[394902549,1764101437989,-150.0,0.00019035,2]
[394902550,1764101437998,-1892.548,0.00019035,2]
[394902551,1764101438007,-707.26277315,0.00019036,2]
[394902552,1764101438016,-150.0,0.00019172,2]
[394902553,1764101438025,-588.84,0.00019178,2]
[394902554,1764101438034,-588.84,0.00019178,2]
[394902555,1764101438044,-588.84,0.00019178,2]
[394902556,1764101438053,-156.92471,0.00019178,2]
[394902557,1764101438062,-156.92471,0.00019178,2]
[394902558,1764101438072,-156.92471,0.00019178,2]
[394902559,1764101438083,-156.92471,0.00019178,2]
[394902560,1764101438092,-157.19,0.00019214,2]
[394902561,1764101438103,-170.0,0.00019238,2]
[394902562,1764101438112,-168.0,0.00019253,2]
[394902563,1764101438122,-170.0,0.00019266,2]
[394902564,1764101438131,-2751.0,0.00019279,2]
[394902565,1764101438141,-168.0,0.0001928,2]
[394902566,1764101438150,-529.35,0.00019283,2]
[394902567,1764101438160,-168.0,0.00019284,2]
[394902568,1764101438169,-153.75790581,0.0001935,2]
[394902569,1764101438178,-150.0,0.0001935,2]
[394902570,1764101438188,-500.0,0.0001935,2]
[394902571,1764101438198,-150.0,0.0001935,2]
[394902572,1764101438207,-150.0,0.0001935,2]
[394902573,1764101438216,-151.01043138,0.0001935,2]
[394902574,1764101438225,-150.0,0.0001935,2]
[394902575,1764101438235,-150.0,0.0001935,2]
[394902576,1764101438244,-169.07619549,0.0001935,2]
[394902577,1764101438253,-168.0,0.00019352,2]
[394902578,1764101438262,-969.0,0.000194,2]
[394902579,1764101438271,-151.0,0.000194,2]
[394902580,1764101438280,-151.0,0.000194,2]
[394902581,1764101438289,-151.0,0.000194,2]
[394902582,1764101438299,-151.0,0.000194,2]
[394902583,1764101438308,-156.92471,0.000194,2]
[394902584,1764101438317,-156.92471,0.000194,2]
[394902585,1764101438326,-156.92471,0.000194,2]
[394902586,1764101438335,-156.92471,0.000194,2]
[394902587,1764101438344,-231.71112977,0.00019487,2]
[394902588,1764101438354,-500.0,0.00019487,2]
[394902589,1764101438364,-150.0,0.00019487,2]
[394902590,1764101438373,-150.0,0.00019487,2]
[394902591,1764101438383,-150.0,0.00019487,2]
[394902592,1764101438392,-610.0,0.00019512,2]
[394902593,1764101438402,-168.0,0.00019545,2]
[394902594,1764101438411,-529.35,0.00019557,2]
[394902595,1764101438420,-1860.52,0.00019569,2]
[394902596,1764101438430,-259.549243,0.00019569,2]
[394902597,1764101438439,-162.94382989,0.00019624,2]
[394902598,1764101438449,-150.0,0.00019624,2]
[394902599,1764101438459,-181.72701111,0.00019624,2]
[394902600,1764101438468,-200.0,0.00019629,2]
[394902601,1764101438477,-999.0,0.00019666,3]
[394902602,1764101438487,-166.66,0.00019669,2]
[394902603,1764101438497,-168.0,0.0001967,2]
[394902604,1764101438506,-283.03885101,0.00019761,2]
[394902605,1764101438516,-8264.0334,0.00019772,2]
[394902606,1764101438525,-1000.0,0.00019772,2]
[394902607,1764101438535,-150.0,0.00019775,2]
[394902608,1764101438545,-150.0,0.00019775,2]
[394902609,1764101438554,-150.0,0.00019775,2]
[394902610,1764101438563,-150.0,0.00019775,2]
[394902611,1764101438573,-150.0,0.00019775,2]
[394902612,1764101438583,-150.0,0.00019775,2]
[394902613,1764101438592,-150.0,0.00019775,2]
[394902614,1764101438602,-150.0,0.00019775,2]
[394902615,1764101438611,-150.63510213,0.00019775,2]
[394902616,1764101438621,-150.0,0.00019775,2]
[394902617,1764101438630,-150.0,0.00019775,2]
[394902618,1764101438640,-150.0,0.00019775,2]
[394902619,1764101438649,-150.0,0.00019775,2]
[394902620,1764101438659,-168.0,0.0001979,2]
[394902621,1764101438669,-168.0,0.00019809,2]
[394902622,1764101438678,-168.0,0.00019826,2]
[394902623,1764101438689,-529.35,0.00019831,2]
[394902624,1764101438698,-1680.0,0.00019866,2]
[394902625,1764101438707,-168.0,0.00019907,2]
[394902626,1764101438716,-168.0,0.0001995,2]
[394902627,1764101438725,-170.0,0.00020025,2]
[394902628,1764101438764,-168.0,0.00020039,2]
[394902629,1764101438773,-168.0,0.00020052,2]
[394902630,1764101438783,-150.0,0.00020089,4]
[394902631,1764101438792,-529.39386198,0.00020105,2]
[394902632,1764101438801,-170.0,0.00020173,2]
[394902633,1764101438810,-482.3,0.00020187,2]
[394902634,1764101438820,-1000.5898696,0.00020212,2]
[394902635,1764101438829,-157.19,0.00020225,2]
[394902636,1764101438838,-168.0,0.00020243,2]
[394902637,1764101438848,-168.0,0.00020276,2]
[394902638,1764101438858,-168.0,0.00020295,2]
[394902639,1764101438871,-200.0,0.00020313,2]
[394902640,1764101438880,-420.0,0.0002032,2]
[394902641,1764101438890,-150.0,0.00020325,4]
[394902642,1764101438899,-415.8,0.00020332,2]
[394902643,1764101438908,-500.0,0.00020356,2]
[394902644,1764101438917,-1300.0,0.00020356,2]
[394902645,1764101438927,-500.0,0.00020356,2]
[394902646,1764101438936,-150.0,0.00020403,4]
[394902647,1764101438946,-168.0,0.00020415,2]
[394902648,1764101438956,-168.0,0.00020441,2]
[394902649,1764101438965,-166.66,0.00020449,2]
[394902650,1764101438975,-151.0,0.00020548,2]
[394902651,1764101438984,-324.10089091,0.00020628,2]
[394902652,1764101438994,-500.0,0.00020628,2]
[394902653,1764101439003,-503.92598697,0.00020628,2]
[394902654,1764101439014,-500.0,0.00020628,2]
[394902655,1764101439025,-500.0,0.00020628,2]
[394902656,1764101439035,-500.0,0.00020628,2]
[394902657,1764101439045,-500.0,0.00020628,2]
[394902658,1764101439056,-500.0,0.00020628,2]
[394902659,1764101439066,-338.44032083,0.00020628,2]
[394902660,1764101439076,-500.0,0.00020628,2]
[394902661,1764101439087,-438.95213548,0.00020628,2]
[394902662,1764101439098,-500.0,0.00020628,2]
[394902663,1764101439116,-647.83006411,0.00020628,2]
[394902664,1764101439126,-500.0,0.00020628,2]
[394902665,1764101439136,-500.0,0.00020628,2]
[394902666,1764101439146,-500.0,0.00020628,2]
[394902667,1764101439156,-500.0,0.00020628,2]
[394902668,1764101439166,-500.0,0.00020628,2]
[394902669,1764101439176,-500.0,0.00020628,2]
[394902670,1764101439186,-500.0,0.00020628,2]
[394902671,1764101439196,-401.24313426,0.00020628,2]
[394902672,1764101439206,-500.0,0.00020628,2]
[394902673,1764101439216,-500.0,0.00020628,2]
[394902674,1764101439227,-500.0,0.00020628,2]
[394902675,1764101439236,-500.0,0.00020628,2]
[394902676,1764101439248,-500.0,0.00020628,2]
[394902677,1764101439258,-500.0,0.00020628,2]
[394902678,1764101439268,-500.0,0.00020628,2]
[394902679,1764101439278,-500.0,0.00020628,2]
[394902680,1764101439287,-500.0,0.00020628,2]
[394902681,1764101439298,-500.0,0.00020628,2]
[394902682,1764101439308,-500.0,0.00020628,2]
[394902683,1764101439318,-500.0,0.00020628,2]
[394902684,1764101439327,-500.0,0.00020628,2]
[394902685,1764101439337,-500.0,0.00020628,2]
[394902686,1764101439346,-500.0,0.00020628,2]
[394902687,1764101439360,-500.0,0.00020628,2]
[394902688,1764101439369,-500.0,0.00020628,2]
[394902689,1764101439378,-500.0,0.00020628,2]
[394902690,1764101439386,-500.0,0.00020628,2]
[394902691,1764101439396,-500.0,0.00020628,2]
[394902692,1764101439404,-247.503,0.00020629,2]
[394902693,1764101439413,-150.0,0.00020629,2]
[394902694,1764101439422,-250.0,0.00020629,2]
[394902695,1764101439432,-250.0,0.00020629,2]
[394902696,1764101439441,-223.225,0.00020629,2]
[394902697,1764101439450,-162.0,0.00020629,2]
[394902698,1764101439459,-1602.0,0.00020629,2]
[394902699,1764101439468,-1320.0,0.00020629,2]
[394902701,1764101439477,-3438.0,0.00020629,2]
[394902702,1764101439485,-610.088,0.00020629,2]
[394902703,1764101439496,-1257.0,0.00020629,2]
[394902704,1764101439504,-823.0,0.00020629,2]
[394902705,1764101439514,-697.059,0.00020629,2]
[394902706,1764101439523,-1192.0,0.00020629,2]
[394902707,1764101439533,-908.0,0.00020629,2]
[394902708,1764101439542,-2715.0,0.00020629,2]
[394902709,1764101439551,-178.352,0.00020629,2]
[394902710,1764101439559,-306.218,0.00020629,2]
[394902711,1764101439569,-561.0,0.00020629,2]
[394902712,1764101439578,-151.0,0.00020629,2]
[394902713,1764101439587,-151.0,0.00020629,2]
[394902714,1764101439596,-151.0,0.00020629,2]
[394902715,1764101439609,-151.0,0.00020629,2]
[394902716,1764101439619,-280.561744,0.00020629,2]
[394902717,1764101439628,-156.92471,0.00020629,2]
[394902718,1764101439637,-156.92471,0.00020629,2]
[394902719,1764101439646,-156.92471,0.00020629,2]
[394902720,1764101439655,-156.92471,0.00020629,2]
[394902721,1764101439664,-168.0,0.00020651,2]
[394902722,1764101439673,-1000.0,0.00020667,2]
[394902723,1764101439682,-150.0,0.00020717,4]
[394902724,1764101439691,-1913.28406934,0.00020793,5]
[394902725,1764101439700,-168.0,0.00020836,2]
[394902726,1764101439709,-168.0,0.00020874,2]
[394902727,1764101439718,-150.0,0.00020874,4]
[394902728,1764101439727,-150.0,0.00020874,4]
[394902729,1764101439736,-150.0,0.00020874,4]
[394902730,1764101439745,-150.0,0.00020874,4]
[394902731,1764101439754,-150.0,0.00020874,4]
[394902732,1764101439763,-150.0,0.00020874,4]
[394902733,1764101439772,-119.85363827,0.00020998,2]
[394902734,1764101439827,-168.43215096,0.00020173,2]
[394902735,1764101439836,-80.14636173,0.00020998,2]
[394902736,1764101439844,-150.0,0.00021031,4]
[394902737,1764101439855,-34.34648731,0.00021035,2]
[394902738,1764101439882,-6500.0,0.00020629,2]
[394902739,1764101439891,-1858.20151269,0.00021035,2]
[394902740,1764101439901,-151.0,0.0002112,2]
[394902741,1764101439910,-151.0,0.0002112,2]
[394902742,1764101439919,-29.89848731,0.0002112,2]
[394902743,1764101439934,-121.10151269,0.0002112,2]
[394902744,1764101439944,-156.92471,0.0002112,2]
[394902745,1764101439953,-156.92471,0.0002112,2]
[394902746,1764101439962,-156.92471,0.0002112,2]
[394902747,1764101439971,-156.92471,0.0002112,2]
[394902748,1764101439987,-8844.93836329,0.0002112,2]
[394902757,1764101445753,-151.0,0.0002112,2]
[394902758,1764101445763,-449.0,0.0002112,2]
[394902759,1764101445775,-3120.77093073,0.0002112,2]
[394902760,1764101445859,-653.0,0.0002112,2]
[394902779,1764102631666,-614.50389,0.00017761,2]
[394902780,1764102631679,-2231.14063238,0.00017761,2]
[394902781,1764102631724,-1023.31953828,0.00017761,2]
[394902782,1764102631839,-1251.42593934,0.00017761,2]
[394902783,1764102631849,-1200.0,0.00018534,2]
[394902784,1764102631859,-210.61811491,0.00018534,2]
[394902840,1764102637815,-89.38188509,0.00018534,2]
[394902842,1764102637824,-873.69811828,0.00018535,2]
[394902879,1764102639813,-300.0,0.00018535,2]
[394902881,1764102640139,-1876.4,0.00018535,2]
[394902882,1764102640154,-436.31898466,0.00018535,2]
[394902883,1764102640165,-268.3479545,0.00018535,2]
[394902884,1764102640176,-827.15099583,0.00018535,2]
[394902895,1764102644210,-302.53834673,0.00018535,2]
[394902896,1764102644222,-209.76855711,0.00018573,2]
[394902897,1764102644237,-910.64658916,0.00018573,2]
[394902898,1764102644247,-87.18177497,0.00018573,2]
[394902899,1764102644259,-3755.54023686,0.00018573,2]
[394902900,1764102644271,-1335.22,0.00018573,2]
[394902901,1764102644286,-372.12200001,0.00018573,2]
[394902902,1764102644297,-2020.2,0.00018573,2]
[394902903,1764102644330,-4686.22260076,0.00018573,2]
[394902904,1764102644339,-159.88357061,0.00018634,2]
[394902905,1764102644349,-500.0,0.00018634,2]
[394902906,1764102644359,-500.0,0.00018634,2]
[394902907,1764102644369,-500.0,0.00018634,2]
[394902908,1764102644379,-490.12431343,0.00018634,2]
[394902909,1764102644389,-500.0,0.00018634,2]
[394902910,1764102644398,-500.0,0.00018634,2]
[394902911,1764102644407,-500.0,0.00018634,2]
[394902912,1764102644416,-500.0,0.00018634,2]
[394902913,1764102644425,-500.0,0.00018634,2]
[394902914,1764102644435,-152.60759887,0.00018634,2]
[394902915,1764102644445,-615.20017716,0.00018634,2]
[394902916,1764102644455,-615.20017716,0.00018634,2]
[394902917,1764102644464,-615.20017716,0.00018634,2]
[394902918,1764102644474,-615.20017716,0.00018634,2]
[394902919,1764102644484,-615.20017716,0.00018634,2]
[394902920,1764102644494,-615.20017716,0.00018634,2]
[394902921,1764102644503,-615.20017716,0.00018634,2]
[394902922,1764102644513,-615.20017716,0.00018634,2]
[394902923,1764102644522,-615.20017716,0.00018634,2]
[394902924,1764102644531,-615.20017716,0.00018634,2]
[394902925,1764102644541,-615.20017716,0.00018634,2]
[394902926,1764102644551,-615.20017716,0.00018634,2]
[394902927,1764102644561,-152.07824989,0.00018634,2]
[394902928,1764102644573,-463.12192727,0.00018634,2]
[394902929,1764102644583,-615.20017716,0.00018634,2]
[394902930,1764102644592,-615.20017716,0.00018634,2]
[394902931,1764102644602,-388.31411841,0.00018634,2]
[394902932,1764102644617,-226.88605875,0.00018634,2]
[394902933,1764102644628,-615.20017716,0.00018634,2]
[394902934,1764102644637,-574.96376409,0.00018634,2]
[394902935,1764102644649,-40.23641307,0.00018634,2]
[394902936,1764102644658,-615.20017716,0.00018634,2]
[394902937,1764102644669,-615.20017716,0.00018634,2]
[394902938,1764102644679,-615.20017716,0.00018634,2]
[394902939,1764102644689,-615.20017716,0.00018634,2]
[394902940,1764102644698,-615.20017716,0.00018634,2]
[394902941,1764102644707,-615.20017716,0.00018634,2]
[394902942,1764102644717,-615.20017716,0.00018634,2]
[394902943,1764102644727,-40.31234681,0.00018634,2]
[394902944,1764102644739,-574.88783035,0.00018634,2]
[394902945,1764102644749,-500.0,0.00018673,2]
[394902946,1764102644759,-1257.0,0.00018741,2]
[394902947,1764102644769,-823.0,0.00018741,2]
[394902948,1764102644779,-660.0,0.00018741,2]
[394902949,1764102644789,-908.0,0.00018741,2]
[394902950,1764102644799,-2191.42722515,0.00018741,2]
[394902953,1764102645715,-377.48135546,0.00018741,2]
[394902954,1764102645881,-146.09141939,0.00018741,2]
[394902955,1764102645892,-739.53966856,0.00018741,2]
[394902956,1764102645938,-862.46033144,0.00018741,2]
[394902957,1764102645948,-1320.0,0.00018741,2]
[394902958,1764102645958,-293.782,0.00018741,2]
[394902959,1764102645968,-306.218,0.00018741,2]
[394902960,1764102645978,-471.53209086,0.00019,2]
[394902961,1764102645988,-515.24,0.00019178,2]
[394902962,1764102645997,-515.24,0.00019178,2]
[394902963,1764102646007,-515.24,0.00019178,2]
[394902964,1764102646016,-151.0,0.00019537,2]
[394902965,1764102646026,-172.829157,0.00019537,2]
[394902966,1764102646035,-151.0,0.00019537,2]
[394902967,1764102646045,-200.0,0.00019537,2]
[394902968,1764102646058,-200.0,0.00019537,2]
[394902969,1764102646067,-200.0,0.00019537,2]
[394902970,1764102646081,-200.0,0.00019537,2]
[394902971,1764102646091,-177.70568084,0.00019537,2]
[394902972,1764102646101,-2087.39063241,0.00019537,2]
[394902978,1764103831791,-810.633,0.00018164,2]
[394902979,1764103831801,-236.0,0.00018434,2]
[394902980,1764103831815,-360.77119221,0.00018434,2]
[394902984,1764103831847,-839.22880779,0.00018434,2]
[394902986,1764103831856,-1910.77119221,0.00018435,2]
[394902987,1764103831868,-6431.72277246,0.00018435,2]
[394902988,1764103831879,-492.9925,0.00018435,2]
[394902989,1764103831906,-2151.7138018,0.00018435,2]
[394902990,1764103831918,-1655.43287776,0.00018435,2]
[394902991,1764103831928,-695.93712224,0.00018435,2]
[394902992,1764103831940,-701.61386136,0.00018435,2]
[394902993,1764103831962,-1680.66735613,0.00018435,2]
[394902994,1764103831973,-4955.5914,0.00018435,2]
[394902995,1764103831984,-2114.534,0.00018435,2]
[394902996,1764103832018,-572.575638,0.00018435,2]
[394903026,1764103838014,-2139.40000018,0.00018435,2]
[394903027,1764103838026,-2323.68831361,0.00018435,2]
[394903028,1764103838035,-155.896795,0.00018535,2]
[394903029,1764103838045,-1225.37489139,0.00018821,2]
[394903030,1764103838057,-639.88094719,0.00018821,2]
[394903031,1764103838073,-937.5,0.00018821,2]
[394903073,1764103839891,-1651.38396414,0.00018821,2]
[394903074,1764103839950,-3021.42867883,0.00018821,2]
[394903075,1764103839962,-479.04107656,0.00018821,2]
[394903076,1764103839975,-1506.07101574,0.00018821,2]
[394903077,1764103840053,-4663.45325746,0.00018821,2]
[394903078,1764103840065,-872.73,0.00018821,2]
[394903079,1764103840075,-2934.50000002,0.00018821,2]
[394903080,1764103840086,-354.96003,0.00018821,2]
[394903081,1764103840110,-576.99438448,0.00018821,2]
[394903082,1764103840165,-1199.99995,0.00018821,2]
[394903091,1764103844222,-20006.76171039,0.00018821,2]
[394903092,1764103844233,-2597.0126527,0.00018821,2]
[394903093,1764103844242,-18216.0293151,0.00018821,2]
[394903094,1764103844252,-500.0,0.00018983,2]
[394903095,1764103844262,-500.0,0.00018983,2]
[394903096,1764103844272,-500.0,0.00018983,2]
[394903097,1764103844282,-500.0,0.00018983,2]
[394903098,1764103844292,-500.0,0.00018983,2]
[394903099,1764103844303,-500.0,0.00018983,2]
[394903100,1764103844314,-63.8078505,0.00018983,2]
[394903101,1764103844327,-436.1921495,0.00018983,2]
[394903102,1764103844337,-500.0,0.00018983,2]
[394903103,1764103844348,-500.0,0.00018983,2]
[394903104,1764103844357,-500.0,0.00018983,2]
[394903105,1764103844368,-500.0,0.00018983,2]
[394903106,1764103844378,-500.0,0.00018983,2]
[394903107,1764103844388,-500.0,0.00018983,2]
[394903108,1764103844397,-500.0,0.00018983,2]
[394903109,1764103844406,-500.0,0.00018983,2]
[394903110,1764103844415,-500.0,0.00018983,2]
[394903111,1764103844425,-500.0,0.00018983,2]
[394903112,1764103844434,-500.0,0.00018983,2]
[394903113,1764103844443,-500.0,0.00018983,2]
[394903114,1764103844453,-500.0,0.00018983,2]
[394903115,1764103844463,-500.0,0.00018983,2]
[394903116,1764103844472,-500.0,0.00018983,2]
[394903117,1764103844482,-500.0,0.00018983,2]
[394903118,1764103844491,-500.0,0.00018983,2]
[394903119,1764103844500,-500.0,0.00018983,2]
[394903120,1764103844700,-500.0,0.00018983,2]
[394903121,1764103844720,-500.0,0.00018983,2]
[394903122,1764103844731,-500.0,0.00018983,2]
[394903123,1764103844740,-500.0,0.00018983,2]
[394903124,1764103844750,-500.0,0.00018983,2]
[394903125,1764103844761,-500.0,0.00018983,2]
[394903126,1764103844771,-500.0,0.00018983,2]
[394903127,1764103844780,-500.0,0.00018983,2]
[394903128,1764103844789,-245.2232879,0.00018983,2]
[394903147,1764103845935,-254.7767121,0.00018983,2]
[394903149,1764103845944,-500.0,0.00018983,2]
[394903151,1764103845954,-500.0,0.00018983,2]
[394903153,1764103845964,-500.0,0.00018983,2]
[394903155,1764103845974,-500.0,0.00018983,2]
[394903157,1764103845988,-500.0,0.00018983,2]
[394903159,1764103845997,-500.0,0.00018983,2]
[394903161,1764103846007,-500.0,0.00018983,2]
[394903163,1764103846016,-500.0,0.00018983,2]
[394903165,1764103846026,-500.0,0.00018983,2]
[394903167,1764103846036,-500.0,0.00018983,2]
[394903169,1764103846046,-438.15505507,0.00018983,2]
[394903171,1764103846067,-61.84494493,0.00018983,2]
[394903172,1764103846078,-500.0,0.00018983,2]
[394903173,1764103846088,-500.0,0.00018983,2]
[394903174,1764103846098,-500.0,0.00018983,2]
[394903175,1764103846108,-500.0,0.00018983,2]
[394903176,1764103846118,-500.0,0.00018983,2]
[394903177,1764103846128,-500.0,0.00018983,2]
[394903178,1764103846137,-500.0,0.00018983,2]
[394903179,1764103846146,-500.0,0.00018983,2]
[394903180,1764103846155,-500.0,0.00018983,2]
[394903181,1764103846166,-500.0,0.00018983,2]
[394903182,1764103846175,-500.0,0.00018983,2]
[394903183,1764103846185,-500.0,0.00018983,2]
[394903184,1764103846194,-500.0,0.00018983,2]
[394903185,1764103846203,-500.0,0.00018983,2]
[394903186,1764103846212,-500.0,0.00018983,2]
[394903187,1764103846222,-500.0,0.00018983,2]
[394903188,1764103846234,-500.0,0.00018983,2]
[394903189,1764103846244,-500.0,0.00018983,2]
[394903190,1764103846253,-500.0,0.00018983,2]
[394903191,1764103846263,-500.0,0.00018983,2]
[394903192,1764103846272,-500.0,0.00018983,2]
[394903193,1764103846282,-500.0,0.00018983,2]
[394903194,1764103846291,-500.0,0.00018983,2]
[394903195,1764103846299,-500.0,0.00018983,2]
[394903196,1764103846309,-500.0,0.00018983,2]
[394903197,1764103846318,-500.0,0.00018983,2]
[394903198,1764103846327,-500.0,0.00018983,2]
[394903199,1764103846336,-500.0,0.00018983,2]
[394903200,1764103846345,-500.0,0.00018983,2]
[394903201,1764103846354,-500.0,0.00018983,2]
[394903202,1764103846364,-500.0,0.00018983,2]
[394903203,1764103846373,-500.0,0.00018983,2]
[394903204,1764103846382,-500.0,0.00018983,2]
[394903206,1764103846398,-500.0,0.00018983,2]
[394903208,1764103846407,-500.0,0.00018983,2]
[394903210,1764103846416,-500.0,0.00018983,2]
[394903212,1764103846425,-500.0,0.00018983,2]
[394903214,1764103846433,-500.0,0.00018983,2]
[394903216,1764103846442,-333.93966809,0.00018983,2]
[394903218,1764103846452,-500.0,0.00018983,2]
[394903220,1764103846460,-500.0,0.00018983,2]
[394903222,1764103846470,-500.0,0.00018983,2]
[394903224,1764103846479,-153.14202063,0.00018983,2]
[394903226,1764103846488,-500.0,0.00018983,2]
[394903228,1764103846499,-153.14202063,0.00018983,2]
[394903230,1764103846508,-6315.22879598,0.00018984,2]
[394903439,1764104273026,488.87,0.00013699,2]
[394903687,1764105031989,-5193.27,0.00016438,2]
[394903688,1764105031999,-166.66,0.00017072,2]
[394903689,1764105032008,-166.66,0.00017431,2]
[394903690,1764105032017,-166.66,0.00017791,2]
[394903691,1764105032025,-1200.0,0.00017994,2]
[394903692,1764105032034,-182.0,0.00018053,2]
[394903693,1764105032043,-300.0,0.00018081,2]
[394903694,1764105032052,-300.0,0.00018082,2]
[394903695,1764105032062,-166.66,0.0001815,2]
[394903696,1764105032071,-166.66,0.0001851,2]
[394903697,1764105032080,-44.33,0.00018565,2]
[394903698,1764105032096,-382.68065334,0.00018565,2]
[394903699,1764105032105,-151.0,0.00018617,2]
[394903700,1764105032113,-18.18271933,0.0001862,2]
[394903701,1764105032124,-457.60598217,0.0001862,2]
[394903702,1764105032135,-280.8008,0.0001862,2]
[394903703,1764105032168,-1499.73759379,0.0001862,2]
[394903704,1764105032179,-737.05343386,0.0001862,2]
[394903705,1764105032190,-11425.07427085,0.0001862,2]
[394903706,1764105032199,-2389.92572915,0.0001864,2]
[394903707,1764105032234,-11363.42129472,0.0001864,2]
[394903708,1764105032243,-151.0,0.00018655,2]
[394903709,1764105032252,-1414.92524019,0.00018658,2]
[394903710,1764105032261,-6571.83450192,0.0001867,2]
[394903711,1764105032272,-5483.8846605,0.0001867,2]
[394903712,1764105032281,-188.79170139,0.0001867,2]
[394903713,1764105032291,-648.507,0.00018672,2]
[394903714,1764105032300,-217.83804073,0.00018678,2]
[394903715,1764105032309,-151.0,0.00018714,2]
[394903716,1764105032318,-6286.38,0.00018717,2]
[394903717,1764105032327,-16717.61,0.00018717,2]
[394903718,1764105032337,-151.0,0.00018717,2]
[394903719,1764105032346,-314.01,0.0001872,2]
[394903720,1764105032355,-151.0,0.00018721,2]
[394903721,1764105032370,-151.0,0.00018721,2]
[394903722,1764105032380,-151.0,0.00018721,2]
[394903723,1764105032396,-166.381369,0.00018721,2]